[Event "*** SCC Grand Prix: Titled Tuesday Blitz"]
[Site "Chess.com"]
[Date "2020.08.25"]
[Round "10"]
[White "BeanScreen"]
[Black "m_ezat"]
[Result "0-1"]
[WhiteElo "2687"]
[BlackElo "2582"]
[TimeControl "180+1"]
[EndTime "12:01:37 PDT"]
[Termination "m_ezat won by resignation"]

1. e4 {[%clk 0:03:00.8]} 1... c6 {[%clk 0:02:59.2]} 2. d4 {[%clk 0:03:01]} 2...
d5 {[%clk 0:02:59.2]} 3. exd5 {[%clk 0:03:01.9]} 3... cxd5 {[%clk 0:02:59]} 4.
Bd3 {[%clk 0:03:02.4]} 4... Nc6 {[%clk 0:02:58.3]} 5. c3 {[%clk 0:03:03]} 5...
Qc7 {[%clk 0:02:56.1]} 6. Bg5 {[%clk 0:03:03]} 6... e5 {[%clk 0:02:52.2]} 7.
dxe5 {[%clk 0:03:02.9]} 7... Qxe5+ {[%clk 0:02:51.6]} 8. Qe2 {[%clk 0:03:02.6]}
8... a6 {[%clk 0:02:37.8]} 9. Nd2 {[%clk 0:02:54.5]} 9... Bc5 {[%clk 0:02:22.7]}
10. Ndf3 {[%clk 0:02:25.1]} 10... Qxe2+ {[%clk 0:02:20]} 11. Nxe2 {[%clk
0:02:25.8]} 11... Bg4 {[%clk 0:02:18.8]} 12. Nfd4 {[%clk 0:02:25.4]} 12... Nge7
{[%clk 0:02:12.2]} 13. O-O {[%clk 0:02:22]} 13... O-O {[%clk 0:01:43.1]} 14.
Rfe1 {[%clk 0:02:19.4]} 14... Rfe8 {[%clk 0:01:42]} 15. Be3 {[%clk 0:02:14.4]}
15... Ne5 {[%clk 0:01:35.7]} 16. Rad1 {[%clk 0:02:09.6]} 16... h6 {[%clk
0:01:26.5]} 17. h3 {[%clk 0:01:55.1]} 17... Bh5 {[%clk 0:01:20.1]} 18. Rd2
{[%clk 0:01:45.8]} 18... Bxd4 {[%clk 0:01:17.8]} 19. Nxd4 {[%clk 0:01:41.9]}
19... Nxd3 {[%clk 0:01:17.6]} 20. Rxd3 {[%clk 0:01:42.2]} 20... Bg6 {[%clk
0:01:17.9]} 21. Rdd1 {[%clk 0:01:41.6]} 21... Nc6 {[%clk 0:01:14.9]} 22. Nb3
{[%clk 0:01:30]} 22... Rad8 {[%clk 0:01:03.2]} 23. Nc5 {[%clk 0:01:24.2]} 23...
Re7 {[%clk 0:01:02.9]} 24. Bd4 {[%clk 0:01:11.7]} 24... Rxe1+ {[%clk 0:01:00.8]}
25. Rxe1 {[%clk 0:01:12.4]} 25... b6 {[%clk 0:00:55.7]} 26. Nb3 {[%clk
0:00:59.6]} 26... b5 {[%clk 0:00:55.3]} 27. Bc5 {[%clk 0:00:58.7]} 27... a5
{[%clk 0:00:51.8]} 28. Nd4 {[%clk 0:00:56.4]} 28... Nxd4 {[%clk 0:00:51.2]} 29.
Bxd4 {[%clk 0:00:56.9]} 29... b4 {[%clk 0:00:39.5]} 30. Re7 {[%clk 0:00:51.3]}
30... bxc3 {[%clk 0:00:39.1]} 31. Bxc3 {[%clk 0:00:48.7]} 31... a4 {[%clk
0:00:32.7]} 32. Kf1 {[%clk 0:00:36.2]} 32... Bb1 {[%clk 0:00:28.3]} 33. a3
{[%clk 0:00:36]} 33... Ba2 {[%clk 0:00:28.2]} 34. Ke2 {[%clk 0:00:35.1]} 34...
Bc4+ {[%clk 0:00:28.2]} 35. Kd2 {[%clk 0:00:31.1]} 35... d4 {[%clk 0:00:27.7]}
36. Bb4 {[%clk 0:00:31.3]} 36... Bb3 {[%clk 0:00:27.5]} 37. Kd3 {[%clk
0:00:26.5]} 37... Rc8 {[%clk 0:00:26.6]} 38. Kxd4 {[%clk 0:00:16.3]} 38... Rc2
{[%clk 0:00:26]} 39. Re8+ {[%clk 0:00:13]} 39... Kh7 {[%clk 0:00:25.4]} 40. Ke3
{[%clk 0:00:11.8]} 40... Rxb2 {[%clk 0:00:18.8]} 41. Re7 {[%clk 0:00:12]} 41...
Bc4 {[%clk 0:00:17.9]} 42. Kf3 {[%clk 0:00:11.9]} 42... Bd5+ {[%clk 0:00:17.3]}
43. Kg3 {[%clk 0:00:11.8]} 43... Rb3+ {[%clk 0:00:17.7]} 44. f3 {[%clk 0:00:12]}
44... Rb2 {[%clk 0:00:18.1]} 45. Rd7 {[%clk 0:00:12.1]} 45... Bc4 {[%clk
0:00:18.1]} 46. Rc7 {[%clk 0:00:11.7]} 46... Bf1 {[%clk 0:00:17.8]} 47. Rxf7
{[%clk 0:00:11.3]} 47... Rxg2+ {[%clk 0:00:15.5]} 48. Kf4 {[%clk 0:00:11.6]}
48... Rh2 {[%clk 0:00:14.9]} 49. Bc3 {[%clk 0:00:11.9]} 49... Rg2 {[%clk
0:00:14.8]} 50. h4 {[%clk 0:00:11.9]} 50... Rg6 {[%clk 0:00:13.1]} 51. h5 {[%clk
0:00:11]} 51... Rg5 {[%clk 0:00:13.3]} 52. Bf6 {[%clk 0:00:09.9]} 52... Kg8
{[%clk 0:00:12.7]} 53. Bxg5 {[%clk 0:00:07.9]} 53... hxg5+ {[%clk 0:00:12.9]}
54. Kxg5 {[%clk 0:00:08.8]} 54... Kxf7 {[%clk 0:00:13.6]} 55. f4 {[%clk
0:00:08.9]} 55... Bd3 {[%clk 0:00:11]} 56. f5 {[%clk 0:00:09.2]} 56... Be4
{[%clk 0:00:07]} 57. h6 {[%clk 0:00:09.4]} 57... gxh6+ {[%clk 0:00:07.3]} 58.
Kxh6 {[%clk 0:00:10.3]} 58... Kf6 {[%clk 0:00:08]} 59. Kh5 {[%clk 0:00:10.8]}
59... Bxf5 {[%clk 0:00:08.6]} 60. Kh4 {[%clk 0:00:11.1]} 60... Ke5 {[%clk
0:00:09.2]} 61. Kg3 {[%clk 0:00:11.7]} 61... Ke4 {[%clk 0:00:09.6]} 62. Kf2
{[%clk 0:00:12]} 62... Kd3 {[%clk 0:00:10.2]} 63. Ke1 {[%clk 0:00:11.2]} 63...
Kc2 {[%clk 0:00:10.9]} 64. Ke2 {[%clk 0:00:11]} 64... Bd3+ {[%clk 0:00:08.6]}
65. Ke3 {[%clk 0:00:11]} 65... Bc4 {[%clk 0:00:09.2]} 66. Kd4 {[%clk 0:00:09.2]}
66... Kb3 {[%clk 0:00:09.8]} 67. Kc5 {[%clk 0:00:08.3]} 67... Be2 {[%clk
0:00:09.5]} 68. Kd4 {[%clk 0:00:08.3]} 68... Kxa3 {[%clk 0:00:09.2]} 69. Kc3
{[%clk 0:00:08.7]} 69... Ka2 {[%clk 0:00:09]} 70. Kc2 {[%clk 0:00:09.1]} 70...
a3 {[%clk 0:00:09]} 71. Kc1 {[%clk 0:00:09.4]} 71... Bd3 {[%clk 0:00:08.8]} 72.
Kd2 {[%clk 0:00:09.5]} 72... Kb1 {[%clk 0:00:09.4]} 0-1

[Event "*** SCC Grand Prix: Titled Tuesday Blitz"]
[Site "Chess.com"]
[Date "2020.08.25"]
[Round "10"]
[White "Kassimov_B"]
[Black "remi04"]
[Result "0-1"]
[WhiteElo "2443"]
[BlackElo "2601"]
[TimeControl "180+1"]
[EndTime "12:01:40 PDT"]
[Termination "remi04 won by resignation"]

1. d4 {[%clk 0:03:00.9]} 1... Nf6 {[%clk 0:02:59.5]} 2. Nf3 {[%clk 0:03:01.1]}
2... e6 {[%clk 0:02:59.2]} 3. Bf4 {[%clk 0:03:00.9]} 3... d5 {[%clk 0:02:57.5]}
4. e3 {[%clk 0:03:01.2]} 4... c5 {[%clk 0:02:57.2]} 5. c3 {[%clk 0:03:00.7]}
5... Nc6 {[%clk 0:02:57.4]} 6. Nbd2 {[%clk 0:02:59.6]} 6... Bd6 {[%clk
0:02:57.1]} 7. Ne5 {[%clk 0:02:59.2]} 7... Qc7 {[%clk 0:02:54.3]} 8. Bb5 {[%clk
0:02:59.2]} 8... a6 {[%clk 0:02:50.9]} 9. Bxc6+ {[%clk 0:02:59.1]} 9... bxc6
{[%clk 0:02:51]} 10. O-O {[%clk 0:02:58.7]} 10... c4 {[%clk 0:02:46.2]} 11. Qf3
{[%clk 0:02:47.5]} 11... a5 {[%clk 0:02:42]} 12. e4 {[%clk 0:02:46.6]} 12... Bb7
{[%clk 0:02:37.7]} 13. Rfe1 {[%clk 0:02:44.5]} 13... O-O {[%clk 0:02:25.3]} 14.
Bg3 {[%clk 0:02:40.6]} 14... c5 {[%clk 0:02:23.2]} 15. exd5 {[%clk 0:02:18.5]}
15... Bxd5 {[%clk 0:02:19.1]} 16. Qe3 {[%clk 0:02:15.9]} 16... cxd4 {[%clk
0:02:16.7]} 17. cxd4 {[%clk 0:02:14.2]} 17... Rab8 {[%clk 0:02:12.3]} 18. Rac1
{[%clk 0:02:12.4]} 18... Qb7 {[%clk 0:01:43.8]} 19. Nexc4 {[%clk 0:01:52.7]}
19... Bxg3 {[%clk 0:01:35.8]} 20. Qxg3 {[%clk 0:01:53.6]} 20... Rfc8 {[%clk
0:01:31.8]} 21. b3 {[%clk 0:01:50.2]} 21... a4 {[%clk 0:01:28.9]} 22. h3 {[%clk
0:01:49.2]} 22... axb3 {[%clk 0:01:27.6]} 23. axb3 {[%clk 0:01:50.1]} 23... Qb4
{[%clk 0:01:27.3]} 24. Rc3 {[%clk 0:01:30.2]} 24... h6 {[%clk 0:01:22.1]} 25.
Rec1 {[%clk 0:01:22]} 25... Ra8 {[%clk 0:01:19.9]} 26. Qe3 {[%clk 0:01:15.5]}
26... Ra2 {[%clk 0:01:14.2]} 27. R3c2 {[%clk 0:01:12.4]} 27... Rca8 {[%clk
0:01:10]} 28. Ne5 {[%clk 0:01:08.8]} 28... Rxc2 {[%clk 0:00:57.7]} 29. Rxc2
{[%clk 0:01:08.4]} 29... Ra1+ {[%clk 0:00:55.4]} 30. Kh2 {[%clk 0:01:08.4]}
30... Qb8 {[%clk 0:00:55.6]} 31. f4 {[%clk 0:01:01.4]} 31... Ra7 {[%clk
0:00:54.4]} 32. Qc3 {[%clk 0:00:52.4]} 32... Kh7 {[%clk 0:00:54.2]} 33. Qd3+
{[%clk 0:00:48.5]} 33... g6 {[%clk 0:00:54.1]} 34. Qg3 {[%clk 0:00:45]} 34...
Rb7 {[%clk 0:00:51.2]} 35. Rc3 {[%clk 0:00:43]} 35... Nh5 {[%clk 0:00:50.2]} 36.
Qh4 {[%clk 0:00:42.7]} 36... Qa7 {[%clk 0:00:42.9]} 37. Nef3 {[%clk 0:00:38.7]}
37... Qa1 {[%clk 0:00:40.2]} 38. Rc8 {[%clk 0:00:36.6]} 38... Rd7 {[%clk
0:00:35.4]} 39. Ne5 {[%clk 0:00:31.5]} 39... Qxd4 {[%clk 0:00:28]} 40. Nxd7
{[%clk 0:00:30.6]} 40... Qxd2 {[%clk 0:00:28.1]} 41. Qg4 {[%clk 0:00:13.7]}
41... Be4 {[%clk 0:00:19.4]} 42. Rd8 {[%clk 0:00:10.7]} 42... Qf2 {[%clk
0:00:15.9]} 43. Nf8+ {[%clk 0:00:08.3]} 43... Kg7 {[%clk 0:00:15.4]} 44. Nxe6+
{[%clk 0:00:08]} 44... fxe6 {[%clk 0:00:15.2]} 45. Rd7+ {[%clk 0:00:08.3]} 45...
Kf6 {[%clk 0:00:13.2]} 46. Rd8 {[%clk 0:00:08]} 46... Qxf4+ {[%clk 0:00:12.9]}
47. Qxf4+ {[%clk 0:00:08.3]} 47... Nxf4 {[%clk 0:00:13.8]} 48. b4 {[%clk
0:00:08.7]} 48... Nxg2 {[%clk 0:00:11.6]} 49. b5 {[%clk 0:00:08.8]} 49... Nf4
{[%clk 0:00:11.8]} 50. b6 {[%clk 0:00:09.1]} 50... Ke7 {[%clk 0:00:12]} 51. Rh8
{[%clk 0:00:08]} 51... h5 {[%clk 0:00:08.3]} 52. b7 {[%clk 0:00:08]} 52... Bxb7
{[%clk 0:00:08.3]} 53. Rh7+ {[%clk 0:00:08.9]} 53... Kf6 {[%clk 0:00:09.2]} 54.
Rxb7 {[%clk 0:00:09.5]} 54... e5 {[%clk 0:00:09.4]} 55. h4 {[%clk 0:00:09.1]}
55... Kf5 {[%clk 0:00:09.6]} 56. Kg3 {[%clk 0:00:09.4]} 56... Ne2+ {[%clk
0:00:09.9]} 57. Kf3 {[%clk 0:00:09.7]} 57... Nd4+ {[%clk 0:00:10.3]} 58. Ke3
{[%clk 0:00:10.1]} 58... Nc2+ {[%clk 0:00:10.6]} 59. Kd3 {[%clk 0:00:09.3]}
59... Ne1+ {[%clk 0:00:10.3]} 60. Ke2 {[%clk 0:00:09.1]} 60... Ng2 {[%clk
0:00:10.7]} 61. Rb4 {[%clk 0:00:09.3]} 61... e4 {[%clk 0:00:09.4]} 62. Rb5+
{[%clk 0:00:09]} 62... Kf4 {[%clk 0:00:09.8]} 63. Rg5 {[%clk 0:00:09.1]} 63...
Nxh4 {[%clk 0:00:09.8]} 64. Rg1 {[%clk 0:00:09.3]} 64... g5 {[%clk 0:00:10.1]}
65. Kf2 {[%clk 0:00:09.4]} 65... e3+ {[%clk 0:00:09.1]} 66. Ke2 {[%clk
0:00:09.3]} 66... g4 {[%clk 0:00:10]} 67. Rh1 {[%clk 0:00:08.5]} 67... Nf5
{[%clk 0:00:07]} 68. Rf1+ {[%clk 0:00:05.8]} 68... Ke4 {[%clk 0:00:07.7]} 69.
Ra1 {[%clk 0:00:05.4]} 69... Nd4+ {[%clk 0:00:07.3]} 70. Kf1 {[%clk 0:00:05.5]}
70... h4 {[%clk 0:00:08.1]} 71. Kg2 {[%clk 0:00:05.6]} 71... Kd3 {[%clk
0:00:07.3]} 72. Ra3+ {[%clk 0:00:04]} 72... Kd2 {[%clk 0:00:07]} 73. Ra2+ {[%clk
0:00:02.4]} 73... Nc2 {[%clk 0:00:06.7]} 74. Kh2 {[%clk 0:00:02.8]} 74... e2
{[%clk 0:00:06.9]} 75. Kg2 {[%clk 0:00:03]} 75... e1=Q {[%clk 0:00:07.3]} 76.
Rxc2+ {[%clk 0:00:03.8]} 76... Kxc2 {[%clk 0:00:07.3]} 77. Kh2 {[%clk
0:00:04.7]} 0-1

[Event "*** SCC Grand Prix: Titled Tuesday Blitz"]
[Site "Chess.com"]
[Date "2020.08.25"]
[Round "10"]
[White "SergeyKarjakin"]
[Black "BocharovD"]
[Result "0-1"]
[WhiteElo "2960"]
[BlackElo "2754"]
[TimeControl "180+1"]
[EndTime "12:01:44 PDT"]
[Termination "BocharovD won by resignation"]

1. e4 {[%clk 0:03:00.9]} 1... c5 {[%clk 0:02:59.9]} 2. Nf3 {[%clk 0:03:00.4]}
2... d6 {[%clk 0:03:00.6]} 3. d4 {[%clk 0:03:00]} 3... cxd4 {[%clk 0:03:01.2]}
4. Nxd4 {[%clk 0:03:00.9]} 4... Nf6 {[%clk 0:03:01.8]} 5. Nc3 {[%clk 0:03:01.4]}
5... a6 {[%clk 0:03:02.4]} 6. Bg5 {[%clk 0:02:58.8]} 6... Nbd7 {[%clk
0:03:01.3]} 7. Qe2 {[%clk 0:02:57.2]} 7... b5 {[%clk 0:03:00.9]} 8. O-O-O {[%clk
0:02:54.4]} 8... Bb7 {[%clk 0:03:00.3]} 9. f4 {[%clk 0:02:53.2]} 9... Rc8 {[%clk
0:02:54.8]} 10. e5 {[%clk 0:02:48.2]} 10... dxe5 {[%clk 0:02:52.2]} 11. fxe5
{[%clk 0:02:49.1]} 11... Rxc3 {[%clk 0:02:51.9]} 12. exf6 {[%clk 0:02:01.9]}
12... Rc5 {[%clk 0:02:51.6]} 13. h4 {[%clk 0:01:39.9]} 13... Re5 {[%clk
0:02:30.7]} 14. fxg7 {[%clk 0:01:33.1]} 14... Bxg7 {[%clk 0:02:27.3]} 15. Qf2
{[%clk 0:01:24.6]} 15... Qb6 {[%clk 0:02:23.2]} 16. Be2 {[%clk 0:00:47.7]} 16...
O-O {[%clk 0:02:18.8]} 17. Rhf1 {[%clk 0:00:42.9]} 17... Be4 {[%clk 0:01:51.3]}
18. Bg4 {[%clk 0:00:27.8]} 18... Nf6 {[%clk 0:01:41.7]} 19. Bf3 {[%clk
0:00:22.7]} 19... Bg6 {[%clk 0:00:50.5]} 20. Kb1 {[%clk 0:00:19.4]} 20... Ne4
{[%clk 0:00:46.6]} 21. Bxe4 {[%clk 0:00:19.1]} 21... Rxe4 {[%clk 0:00:46.8]} 22.
Nf5 {[%clk 0:00:16]} 22... Qxf2 {[%clk 0:00:44.5]} 23. Rxf2 {[%clk 0:00:16.9]}
23... Bxf5 {[%clk 0:00:42.5]} 24. Rxf5 {[%clk 0:00:17.8]} 24... Re2 {[%clk
0:00:40]} 25. Rc5 {[%clk 0:00:12.5]} 25... h6 {[%clk 0:00:35]} 26. Bc1 {[%clk
0:00:11.1]} 26... Rxg2 {[%clk 0:00:34.8]} 27. Rc6 {[%clk 0:00:11.2]} 27... e5
{[%clk 0:00:28.4]} 28. Rxa6 {[%clk 0:00:09.9]} 28... e4 {[%clk 0:00:24]} 29. a4
{[%clk 0:00:09.3]} 29... bxa4 {[%clk 0:00:23.4]} 30. Rxa4 {[%clk 0:00:10.2]}
30... Re8 {[%clk 0:00:23.7]} 31. Be3 {[%clk 0:00:07.8]} 31... Re2 {[%clk
0:00:22.2]} 32. Bc5 {[%clk 0:00:06.2]} 32... e3 {[%clk 0:00:20.4]} 33. Rg1
{[%clk 0:00:06.6]} 33... Kh7 {[%clk 0:00:19.9]} 34. Rf4 {[%clk 0:00:05]} 34...
f6 {[%clk 0:00:12.4]} 35. Rf3 {[%clk 0:00:05.1]} 35... Re5 {[%clk 0:00:10.6]}
36. b4 {[%clk 0:00:04.6]} 36... f5 {[%clk 0:00:10.2]} 37. Bd4 {[%clk 0:00:03]}
37... Re7 {[%clk 0:00:10.4]} 38. Bc5 {[%clk 0:00:02.9]} 38... Rf7 {[%clk
0:00:09.5]} 39. Rxe3 {[%clk 0:00:02.6]} 39... Rh2 {[%clk 0:00:09.1]} 40. Rf3
{[%clk 0:00:02.4]} 40... Rxh4 {[%clk 0:00:08.2]} 41. Rb3 {[%clk 0:00:02.5]}
41... Rc4 {[%clk 0:00:07.6]} 42. Rf1 {[%clk 0:00:03]} 42... f4 {[%clk
0:00:07.7]} 43. Rff3 {[%clk 0:00:02.5]} 43... Rd7 {[%clk 0:00:07.3]} 44. c3
{[%clk 0:00:03]} 44... Re4 {[%clk 0:00:06.8]} 45. Kc2 {[%clk 0:00:03.5]} 45...
Re2+ {[%clk 0:00:06.6]} 46. Kc1 {[%clk 0:00:04.1]} 46... Re1+ {[%clk 0:00:07.1]}
47. Kc2 {[%clk 0:00:03.4]} 47... Re2+ {[%clk 0:00:07.5]} 48. Kc1 {[%clk
0:00:03.9]} 48... Be5 {[%clk 0:00:07.9]} 49. b5 {[%clk 0:00:03.6]} 49... Re1+
{[%clk 0:00:07.5]} 50. Kb2 {[%clk 0:00:04]} 50... Re2+ {[%clk 0:00:06.2]} 51.
Ka3 {[%clk 0:00:04.3]} 51... Rd5 {[%clk 0:00:06.5]} 52. Kb4 {[%clk 0:00:04.4]}
52... Re4+ {[%clk 0:00:06.5]} 53. c4 {[%clk 0:00:04.3]} 53... Rd1 {[%clk
0:00:05.9]} 54. b6 {[%clk 0:00:04.4]} 54... Rc1 {[%clk 0:00:05.7]} 55. Kb5
{[%clk 0:00:04]} 55... Rexc4 {[%clk 0:00:05.7]} 56. Bf2 {[%clk 0:00:03.7]} 56...
R4c2 {[%clk 0:00:05.6]} 57. Rb4 {[%clk 0:00:01.7]} 57... Rc8 {[%clk 0:00:04.8]}
58. b7 {[%clk 0:00:01.9]} 58... Rb8 {[%clk 0:00:05]} 59. Kb6 {[%clk 0:00:02.4]}
59... Bc7+ {[%clk 0:00:05]} 60. Ka6 {[%clk 0:00:01.4]} 60... Ra1+ {[%clk
0:00:04.6]} 61. Kb5 {[%clk 0:00:01.6]} 61... Rxb7+ {[%clk 0:00:05.1]} 62. Kc4
{[%clk 0:00:02]} 62... Rxb4+ {[%clk 0:00:05.6]} 63. Kxb4 {[%clk 0:00:02.9]}
63... Rf1 {[%clk 0:00:05.4]} 64. Kc5 {[%clk 0:00:02]} 64... Bb8 {[%clk
0:00:05.8]} 65. Kb6 {[%clk 0:00:01.6]} 65... Kg6 {[%clk 0:00:04.9]} 66. Kb7
{[%clk 0:00:01.8]} 66... Be5 {[%clk 0:00:05]} 67. Kc6 {[%clk 0:00:02.2]} 67...
Kf5 {[%clk 0:00:05.3]} 68. Kd5 {[%clk 0:00:02.1]} 68... h5 {[%clk 0:00:05.8]}
69. Rh3 {[%clk 0:00:01.6]} 69... Rxf2 {[%clk 0:00:06.2]} 70. Rxh5+ {[%clk
0:00:02]} 70... Kg4 {[%clk 0:00:06.8]} 71. Rxe5 {[%clk 0:00:02.7]} 71... Rd2+
{[%clk 0:00:06.7]} 72. Kc4 {[%clk 0:00:03.3]} 72... f3 {[%clk 0:00:06.9]} 73.
Kc3 {[%clk 0:00:03.3]} 73... Rd7 {[%clk 0:00:06.9]} 74. Re8 {[%clk 0:00:02.6]}
74... Kg3 {[%clk 0:00:07.1]} 0-1

[Event "*** SCC Grand Prix: Titled Tuesday Blitz"]
[Site "Chess.com"]
[Date "2020.08.25"]
[Round "10"]
[White "frederiksvane"]
[Black "Gloomy_Wanderer"]
[Result "1-0"]
[WhiteElo "2674"]
[BlackElo "2749"]
[TimeControl "180+1"]
[EndTime "12:02:35 PDT"]
[Termination "frederiksvane won by resignation"]

1. e4 {[%clk 0:03:00.9]} 1... c5 {[%clk 0:02:59.8]} 2. Nf3 {[%clk 0:03:01.2]}
2... a6 {[%clk 0:03:00]} 3. d4 {[%clk 0:03:00.8]} 3... cxd4 {[%clk 0:03:00.2]}
4. Nxd4 {[%clk 0:03:01.7]} 4... Nf6 {[%clk 0:03:00.6]} 5. Bc4 {[%clk 0:03:02]}
5... e5 {[%clk 0:02:24.9]} 6. Nf3 {[%clk 0:03:02.2]} 6... Nc6 {[%clk 0:02:24.9]}
7. O-O {[%clk 0:03:00.8]} 7... h6 {[%clk 0:02:24.9]} 8. Nc3 {[%clk 0:02:55.1]}
8... Bc5 {[%clk 0:02:24.5]} 9. Nh4 {[%clk 0:02:42.4]} 9... d6 {[%clk 0:02:03.7]}
10. Nf5 {[%clk 0:02:41.3]} 10... O-O {[%clk 0:02:01.8]} 11. Be3 {[%clk
0:02:37.1]} 11... Bxf5 {[%clk 0:01:45.6]} 12. exf5 {[%clk 0:02:24.6]} 12... Bxe3
{[%clk 0:01:37.5]} 13. fxe3 {[%clk 0:02:25.5]} 13... Qb6 {[%clk 0:01:38]} 14.
Qd2 {[%clk 0:02:13]} 14... Qc5 {[%clk 0:01:24.4]} 15. Bb3 {[%clk 0:02:08.8]}
15... Rad8 {[%clk 0:01:21.7]} 16. Rad1 {[%clk 0:02:05.5]} 16... Ne7 {[%clk
0:01:14.6]} 17. Kh1 {[%clk 0:01:44.8]} 17... d5 {[%clk 0:01:13.6]} 18. Qe2
{[%clk 0:01:35.4]} 18... Nc6 {[%clk 0:01:09.2]} 19. Qf3 {[%clk 0:01:12.1]} 19...
e4 {[%clk 0:01:06.9]} 20. Qf4 {[%clk 0:01:07.1]} 20... Rfe8 {[%clk 0:01:06]} 21.
Ne2 {[%clk 0:01:07.1]} 21... d4 {[%clk 0:00:57.2]} 22. exd4 {[%clk 0:01:06.2]}
22... Nxd4 {[%clk 0:00:57.3]} 23. Nxd4 {[%clk 0:00:41.3]} 23... Rxd4 {[%clk
0:00:56.9]} 24. Rxd4 {[%clk 0:00:41]} 24... Qxd4 {[%clk 0:00:57.4]} 25. c3
{[%clk 0:00:40.9]} 25... Qe5 {[%clk 0:00:52.7]} 26. Qxe5 {[%clk 0:00:36.8]}
26... Rxe5 {[%clk 0:00:53.6]} 27. Kg1 {[%clk 0:00:34.9]} 27... Kf8 {[%clk
0:00:51.9]} 28. h3 {[%clk 0:00:29.8]} 28... h5 {[%clk 0:00:51.9]} 29. Kh2 {[%clk
0:00:26.9]} 29... h4 {[%clk 0:00:45]} 30. g4 {[%clk 0:00:26.5]} 30... hxg3+
{[%clk 0:00:44.5]} 31. Kxg3 {[%clk 0:00:26.9]} 31... Ke7 {[%clk 0:00:42.5]} 32.
Kf4 {[%clk 0:00:26.9]} 32... Rc5 {[%clk 0:00:34.7]} 33. Rg1 {[%clk 0:00:25.5]}
33... Rc8 {[%clk 0:00:27.7]} 34. Ke5 {[%clk 0:00:16]} 34... Rc5+ {[%clk
0:00:17]} 35. Kd4 {[%clk 0:00:16.5]} 35... Rxf5 {[%clk 0:00:16.4]} 36. Rxg7
{[%clk 0:00:16.7]} 36... Nd7 {[%clk 0:00:13.4]} 37. Kxe4 {[%clk 0:00:15.7]}
37... Rf2 {[%clk 0:00:14.1]} 38. Ke3 {[%clk 0:00:15]} 38... Rxb2 {[%clk
0:00:14.3]} 39. Rxf7+ {[%clk 0:00:15.5]} 39... Kd6 {[%clk 0:00:15.1]} 40. h4
{[%clk 0:00:15.5]} 40... Nc5 {[%clk 0:00:15.4]} 41. h5 {[%clk 0:00:13.5]} 41...
Rh2 {[%clk 0:00:13.1]} 42. Rf5 {[%clk 0:00:11.7]} 42... Rh3+ {[%clk 0:00:12.3]}
43. Kd4 {[%clk 0:00:11.2]} 43... Rh4+ {[%clk 0:00:12.6]} 44. Ke3 {[%clk
0:00:10.9]} 44... Rh3+ {[%clk 0:00:13.2]} 45. Kf2 {[%clk 0:00:06.3]} 45... Ne4+
{[%clk 0:00:12.3]} 46. Kg2 {[%clk 0:00:06.1]} 46... Rxc3 {[%clk 0:00:11.9]} 47.
h6 {[%clk 0:00:06.1]} 47... Rg3+ {[%clk 0:00:11.6]} 48. Kh2 {[%clk 0:00:06.6]}
48... Rg6 {[%clk 0:00:11.6]} 49. Rh5 {[%clk 0:00:06]} 49... Nf6 {[%clk
0:00:10.1]} 50. h7 {[%clk 0:00:06.4]} 50... Ng4+ {[%clk 0:00:08]} 51. Kh3 {[%clk
0:00:04.9]} 51... Nf2+ {[%clk 0:00:07.8]} 52. Kh2 {[%clk 0:00:05.4]} 52... Ng4+
{[%clk 0:00:08.2]} 53. Kg3 {[%clk 0:00:05.6]} 53... Nf6+ {[%clk 0:00:08.5]} 54.
Kf3 {[%clk 0:00:05.8]} 54... Nxh7 {[%clk 0:00:07.6]} 55. Rxh7 {[%clk 0:00:06.7]}
55... b6 {[%clk 0:00:07.1]} 56. Ra7 {[%clk 0:00:06.7]} 56... a5 {[%clk
0:00:07.5]} 57. Rf7 {[%clk 0:00:07.3]} 57... Kc5 {[%clk 0:00:07.5]} 58. Rf5+
{[%clk 0:00:07.8]} 58... Kb4 {[%clk 0:00:07.8]} 59. Ke3 {[%clk 0:00:07]} 59...
Rd6 {[%clk 0:00:07]} 60. Rf4+ {[%clk 0:00:05.5]} 60... Kc3 {[%clk 0:00:06.7]}
61. Rc4+ {[%clk 0:00:05.5]} 61... Kb2 {[%clk 0:00:06.8]} 62. Ke4 {[%clk
0:00:05.9]} 62... b5 {[%clk 0:00:06.9]} 63. Rc5 {[%clk 0:00:06.5]} 63... a4
{[%clk 0:00:07.2]} 64. Bd5 {[%clk 0:00:07.2]} 64... b4 {[%clk 0:00:06.7]} 65.
Rb5 {[%clk 0:00:07.4]} 65... Ka3 {[%clk 0:00:06.6]} 66. Ra5 {[%clk 0:00:06.4]}
66... Rh6 {[%clk 0:00:04.8]} 67. Bb3 {[%clk 0:00:06.3]} 67... Rh4+ {[%clk
0:00:03.7]} 68. Kd3 {[%clk 0:00:04.8]} 68... Rh3+ {[%clk 0:00:04.1]} 69. Kc2
{[%clk 0:00:04.9]} 69... Rh2+ {[%clk 0:00:04.3]} 70. Kd1 {[%clk 0:00:05.4]}
70... Rh1+ {[%clk 0:00:04.7]} 71. Ke2 {[%clk 0:00:05.8]} 71... Rh2+ {[%clk
0:00:05]} 72. Kf1 {[%clk 0:00:06.2]} 72... Rh4 {[%clk 0:00:03.1]} 73. Rxa4+
{[%clk 0:00:06.4]} 73... Kb2 {[%clk 0:00:03.8]} 74. Ke2 {[%clk 0:00:07.3]} 74...
Kc3 {[%clk 0:00:03.8]} 75. Ra5 {[%clk 0:00:07.1]} 75... Re4+ {[%clk 0:00:04]}
76. Kf3 {[%clk 0:00:07.3]} 76... Re8 {[%clk 0:00:04.8]} 77. Rc5+ {[%clk
0:00:07.7]} 77... Kb2 {[%clk 0:00:05.3]} 78. Rc4 {[%clk 0:00:08]} 78... Ka3
{[%clk 0:00:05.9]} 79. Re4 {[%clk 0:00:08.3]} 79... Rd8 {[%clk 0:00:06.2]} 80.
Ke3 {[%clk 0:00:08.4]} 80... Rh8 {[%clk 0:00:06.3]} 81. Kd4 {[%clk 0:00:08.1]}
81... Rd8+ {[%clk 0:00:06.5]} 82. Kc4 {[%clk 0:00:08.4]} 82... Rc8+ {[%clk
0:00:06.7]} 83. Kd4 {[%clk 0:00:08.7]} 83... Rd8+ {[%clk 0:00:07.1]} 84. Ke5
{[%clk 0:00:08.2]} 84... Re8+ {[%clk 0:00:05.3]} 85. Kd5 {[%clk 0:00:08.6]}
85... Rd8+ {[%clk 0:00:05.6]} 86. Kc6 {[%clk 0:00:08.8]} 86... Rc8+ {[%clk
0:00:06]} 87. Kb7 {[%clk 0:00:08.9]} 87... Rh8 {[%clk 0:00:06.1]} 88. Re5 {[%clk
0:00:08.8]} 88... Rh7+ {[%clk 0:00:06.2]} 89. Kb6 {[%clk 0:00:09.3]} 89... Rh6+
{[%clk 0:00:06.4]} 90. Kb5 {[%clk 0:00:09.6]} 90... Rh8 {[%clk 0:00:06.4]} 91.
Re6 {[%clk 0:00:09.5]} 91... Rh5+ {[%clk 0:00:05.9]} 92. Ka6 {[%clk 0:00:07.5]}
92... Rg5 {[%clk 0:00:06]} 93. Rb6 {[%clk 0:00:07.6]} 93... Rh5 {[%clk
0:00:05.5]} 94. Rb5 {[%clk 0:00:07.9]} 94... Rh6+ {[%clk 0:00:05.7]} 95. Ka5
{[%clk 0:00:08.1]} 95... Rh8 {[%clk 0:00:06.1]} 96. Rc5 {[%clk 0:00:05.6]} 96...
Ra8+ {[%clk 0:00:05.4]} 97. Kb5 {[%clk 0:00:06.1]} 97... Rb8+ {[%clk 0:00:05.7]}
98. Kc4 {[%clk 0:00:06.5]} 98... Rb7 {[%clk 0:00:05.4]} 99. Ra5+ {[%clk
0:00:06.7]} 99... Kb2 {[%clk 0:00:05.4]} 100. Rb5 {[%clk 0:00:07.2]} 100... Rh7
{[%clk 0:00:04.6]} 101. Kxb4 {[%clk 0:00:07.3]} 101... Rh4+ {[%clk 0:00:05.2]}
102. Ka5 {[%clk 0:00:07.6]} 1-0